[Event "Danish-ch Masters 2022"]
[Site "Svendborg"]
[Date "2022.04.09"]
[Round "1.1"]
[White "Schandorff, Lars"]
[Black "Ochsner, Bjorn Moller"]
[Result "1/2-1/2"]
[ECO "D38"]
[WhiteElo "2469"]
[BlackElo "2496"]
[Annotator "TA"]
[PlyCount "61"]
[EventDate "2022.04.10"]
[EventType "tourn"]
[EventCountry "DEN"]
[SourceTitle "playchess.com"]
[Source "ChessBase"]
[SourceQuality "1"]
[TimeControl "40/5400+30:1800+30"]

{[%evp 11,61,14,22,3,22,19,21,10,14,7,10,2,11,15,12,0,25,17,2,0,14,0,7,0,0,0,0,0,20,0,26,2,42,30,37,0,0,0,20,13,18,8,16,9,26,0,0,0,0,0,0,0]} 1. d4 {[%emt 0:00:09]} d5 {[%emt 0:00:24]} 2. Nf3 {[%emt 0:01:13]} Nf6 {[%emt 0:00:09]} 3. c4 {[%emt 0:00:56]} e6 {[%emt 0:00:24]} 4. Nc3 {[%emt 0:00:32]} Bb4 {[%emt 0:00:33]} 5. Qa4+ {[%emt 0:02:07]} Nc6 {[%emt 0:00:09]} 6. e3 {[%emt 0:00:11]} O-O {[%emt 0:00:39]} 7. Qc2 {[%emt 0:01:06] D38: Queen's Gambit Declined: Ragozin Defence (4 Nf3 Bb4).} Qe7 {[%emt 0:01:18]} 8. Bd2 {[%emt 0:11:08]} dxc4 {[%emt 0:01:02]} 9. Bxc4 {[%emt 0:00:08]} e5 {[%emt 0:00:25] [#]} 10. O-O $146 {[%emt 0:06:48]} ({Predecessor:} 10. d5 Qc5 11. Ne4 Nxe4 12. Qxe4 Ne7 13. Nxe5 Bf5 14. Qf4 Bxd2+ 15. Kxd2 Qb4+ 16. Kc1 {0-1 (35) Keymer,V (2664)-Aronian,L (2772) Berlin 2022}) 10... exd4 {[%emt 0:01:08]} 11. Nxd4 {[%emt 0:03:05]} Nxd4 {[%emt 0:01:09]} 12. exd4 {[%emt 0:00:05]} c6 {[%emt 0:02:18]} 13. Bf4 {[%emt 0:22:52]} Bg4 {[%emt 0:29:22][%cal Bc8g4,Bg4h5,Bh5g6][%mdl 32]} 14. h3 {[%emt 0:05:37]} Bh5 {[%emt 0:02:13]} 15. Rfe1 {[%emt 0:01:37]} Qd8 {[%emt 0:04:33]} (15... Qd7 $5 {[%cal Rd7d4]}) 16. Qb3 {[%emt 0:17:59]} a5 {[%emt 0:02:35]} 17. a3 {[%emt 0:04:59]} Bd6 {[%emt 0:01:41]} (17... Qxd4 $2 18. Be5 (18. axb4 Qxf4 19. bxa5 Qc7 $11) 18... Bxc3 19. Bxd4 Bxd4 20. Qxb7 $18) 18. Be5 {[%emt 0:00:18]} b5 {[%emt 0:01:23]} 19. Bf1 {[%emt 0:01:18]} Bg6 {[%emt 0:11:20]} 20. Qd1 {[%emt 0:02:03]} Rc8 {[%emt 0:07:24]} 21. Qf3 {[%emt 0:02:18]} Be7 {[%emt 0:08:20]} 22. Rac1 {[%emt 0:04:08]} Qd7 {[%emt 0:13:12]} 23. Bd3 {[%emt 0:00:55]} Bxd3 {[%emt 0:01:27]} 24. Qxd3 {[%emt 0:00:02]} b4 {[%emt 0:02:43]} 25. axb4 {[%emt 0:00:27]} axb4 {[%emt 0:00:09]} 26. Na4 {[%emt 0:01:18] [#] Strongly threatening Nb6.} Nd5 {[%emt 0:00:43] Inhibits Nb6.} 27. Nc5 {[%emt 0:02:12]} Bxc5 {[%emt 0:02:32]} 28. dxc5 {[%emt 0:00:10]} Rfe8 {[%emt 0:00:45] The position is equal.} 29. Bd6 {[%emt 0:02:13]} Rxe1+ {[%emt 0:00:44]} 30. Rxe1 {[%emt 0:00:05]} Re8 {[%emt 0:00:12]} 31. Re4 {[%emt 0:02:31] Weighted Error Value: White=0.08 (flawless) /Black=0.06 (flawless)} 1/2-1/2

[Event "Danish-ch Masters 2022"]
[Site "Svendborg"]
[Date "2022.04.09"]
[Round "1.2"]
[White "Thybo, Jesper Sondergaard"]
[Black "Haubro, Martin"]
[Result "1-0"]
[ECO "A06"]
[WhiteElo "2592"]
[BlackElo "2399"]
[Annotator "TA"]
[PlyCount "95"]
[EventDate "2022.04.10"]
[EventType "tourn"]
[EventCountry "DEN"]
[SourceTitle "playchess.com"]
[Source "ChessBase"]
[SourceQuality "1"]
[TimeControl "40/5400+30:1800+30"]

{[%evp 9,95,0,6,5,0,2,6,0,14,16,17,11,6,20,24,18,18,11,23,20,25,15,33,33,51,31,32,30,77,65,60,14,15,11,29,31,33,20,79,72,80,77,77,64,66,66,66,66,121,112,113,113,116,120,127,127,126,113,158,156,149,138,212,217,216,179,205,185,224,189,189,189,262,262,294,290,308,315,321,322,364,356,364,355,401,422,445,435]} 1. Nf3 {[%emt 0:00:04]} d5 {[%emt 0:00:08]} 2. g3 {[%emt 0:00:13]} c6 {[%emt 0:00:12]} 3. Bg2 {[%emt 0:00:31]} Bg4 {[%emt 0:00:11]} 4. h3 {[%emt 0:01:09]} Bxf3 {[%emt 0:05:35]} 5. Bxf3 {[%emt 0:00:15]} Nd7 {[%emt 0:01:05]} 6. d3 {[%emt 0:01:46] A07: Réti Opening: New York and Capablanca Systems.} Ngf6 {[%emt 0:03:09]} 7. O-O {[%emt 0:01:13]} e5 {[%emt 0:05:13]} 8. e4 {[%emt 0:04:51] The position is equal.} dxe4 {[%emt 0:06:41]} 9. dxe4 {[%emt 0:00:07]} Be7 {[%emt 0:00:58]} 10. Nd2 {[%emt 0:01:33]} O-O {[%emt 0:00:25]} 11. a4 {[%emt 0:06:16]} a5 {[%emt 0:04:36]} 12. Qe2 {[%emt 0:07:47]} Qc7 {[%emt 0:01:07]} 13. Nc4 {[%emt 0:02:51] [#]} Rfe8 $146 {[%emt 0:05:57]} ({Predecessor:} 13... Nc5 14. Bd2 Rfe8 15. Bc3 Bf8 16. Kg2 b6 17. Rfd1 g6 18. b3 Bg7 19. h4 Nfd7 {½-½ (42) Tomashevsky,E (2724)-Goganov,A (2635) Novosibirsk 2016}) 14. h4 {[%emt 0:04:52]} Nc5 {[%emt 0:09:48]} 15. Bd2 {[%emt 0:08:06]} b6 {[%emt 0:14:24]} 16. Bc3 {[%emt 0:05:47]} Nfd7 {[%emt 0:03:47]} 17. Bg4 {[%emt 0:01:33]} Bf8 {[%emt 0:00:39]} 18. Bh3 {[%emt 0:04:01]} Rad8 {[%emt 0:05:37]} (18... Nf6 $11) 19. Rfd1 $16 {[%emt 0:01:18] &Bianco is more active.} Ne6 {[%emt 0:02:41][%cal Oe6d4]} 20. Rd3 {[%emt 0:06:17] Inhibits Nd4.} (20. Kg2 $14 {should be considered.}) 20... Nd4 $1 $11 {[%emt 0:07:01]} 21. Bxd4 {[%emt 0:07:33]} exd4 {[%emt 0:00:04]} 22. Rxd4 {[%emt 0:00:06]} Bc5 {[%emt 0:02:06]} 23. Rd3 {[%emt 0:01:48]} Nf6 {[%emt 0:15:16]} (23... Ne5 $11 24. Nxe5 Qxe5) 24. e5 $16 {[%emt 0:02:09]} Rxd3 {[%emt 0:01:33]} 25. Qxd3 {[%emt 0:02:12]} b5 {[%emt 0:00:08]} 26. exf6 {[%emt 0:07:56]} bxc4 {[%emt 0:00:06]} 27. Qf3 {[%emt 0:00:05]} Qe5 {[%emt 0:00:44][%csl LRb2,LRf6]} 28. Rd1 {[%emt 0:05:40]} Qxf6 {[%emt 0:00:11] White leaves nothing to chance now.} (28... Qxb2 $14 29. Bd7 (29. Qxc6 Bxf2+ 30. Kf1 Qe5 $11) 29... Rd8) 29. Qxf6 {[%emt 0:00:41]} gxf6 $14 {[%emt 0:00:15][%mdl 4096] Endgame [#] KRB-KRB} 30. Bf1 {[%emt 0:00:15] Inhibits Re2.} c3 {[%emt 0:04:10]} 31. bxc3 {[%emt 0:00:49]} Re4 {[%emt 0:00:25]} 32. Ra1 {[%emt 0:00:30]} (32. Bg2 $6 Rxa4 33. Bxc6 Rc4 $11) 32... Re7 {[%emt 0:01:02]} 33. Bd3 {[%emt 0:02:48]} Bd6 {[%emt 0:00:41]} 34. Rb1 {[%emt 0:01:13]} Be5 {[%emt 0:00:27]} 35. Rb3 {[%emt 0:00:09]} h6 {[%emt 0:00:16]} (35... Re8 $16 36. f4 Bd6) 36. Kg2 {[%emt 0:00:52]} Bc7 {[%emt 0:01:12]} 37. Rb7 {[%emt 0:01:49]} Kf8 {[%emt 0:00:10]} 38. Ra7 {[%emt 0:01:15]} Ke8 {[%emt 0:00:12]} 39. Kf3 {[%emt 0:06:29]} Bd8 {[%emt 0:00:07]} 40. Ra6 {[%emt 0:02:04]} Kd7 {[%emt 0:01:31]} (40... Re6 {might work better.} 41. Be4 Kf8) 41. Be4 $18 {[%emt 0:31:57]} Re5 {[%emt 0:03:20]} 42. Bxc6+ {[%emt 0:00:00]} Ke7 {[%emt 0:00:21]} 43. c4 {[%emt 0:00:00][%cal Bc3c4,Bc4c5][%mdl 32]} Bc7 {[%emt 0:02:09]} 44. Bd5 {[%emt 0:00:00] Against Re6} Re1 {[%emt 0:01:52]} 45. c5 {[%emt 0:00:00]} Ra1 {[%emt 0:01:38]} 46. Bb3 {[%emt 0:00:00]} ({Don't take} 46. Ra7 Kd7 47. Bc4 Ra3+ 48. Bb3 Ra1 $18) 46... Rc1 {[%emt 0:00:12]} 47. Ra8 {[%emt 0:00:00]} Ra1 {[%emt 0:00:54]} 48. Rh8 {[%emt 0:00:00] Weighted Error Value: White=0.05 (flawless) /Black=0.15 (very precise)} 1-0

[Event "Danish-ch Masters 2022"]
[Site "Svendborg"]
[Date "2022.04.09"]
[Round "1.3"]
[White "Percivaldi, Martin"]
[Black "Bjerre, Jonas Buhl"]
[Result "1/2-1/2"]
[ECO "A14"]
[WhiteElo "2389"]
[BlackElo "2586"]
[Annotator "TA"]
[PlyCount "74"]
[EventDate "2022.04.10"]
[EventType "tourn"]
[EventCountry "DEN"]
[SourceTitle "playchess.com"]
[Source "ChessBase"]
[SourceQuality "1"]
[TimeControl "40/5400+30:1800+30"]

{[%evp 14,74,5,13,10,0,22,-20,-19,-10,14,14,15,0,-12,-10,0,-13,-17,-7,-17,-28,-13,-17,-10,-12,-8,-19,-8,-17,-15,-14,-9,-9,-9,-8,-16,-20,-20,-42,-33,-52,-46,-43,-43,-48,-41,-42,-53,-50,-48,-48,-20,-22,-8,-8,-8,-21,-8,-8,-8,-8,0]} 1. Nf3 {[%emt 0:00:08]} Nf6 {[%emt 0:00:39]} 2. c4 {[%emt 0:00:26]} e6 {[%emt 0:01:00]} 3. g3 {[%emt 0:00:50]} d5 {[%emt 0:00:10]} 4. Bg2 {[%emt 0:00:10]} Be7 {[%emt 0:02:37]} 5. O-O {[%emt 0:00:22]} O-O {[%emt 0:02:13]} 6. d4 {[%emt 0:00:29]} c6 {[%emt 0:01:25]} 7. Nbd2 {[%emt 0:04:41]} b6 {[%emt 0:01:18]} 8. Qc2 {[%emt 0:00:43]} c5 {[%emt 0:01:44] E06: Closed Catalan: Early deviations.} 9. cxd5 {[%emt 0:14:39]} exd5 {[%emt 0:00:52]} 10. e4 {[%emt 0:00:44]} Nc6 {[%emt 0:03:18] aiming for ...Nb4.} 11. exd5 {[%emt 0:08:49]} Nxd5 {[%emt 0:01:35]} (11... Nb4 $5 {[%cal Rb4c2]} 12. Qa4 Bd7 $11) 12. dxc5 {[%emt 0:01:34]} bxc5 {[%emt 0:00:36]} 13. Nc4 {[%emt 0:06:40]} Be6 {[%emt 0:06:15] [#]} 14. b3 $146 {[%emt 0:10:23]} ({Predecessor:} 14. Rd1 Qc7 15. Bg5 Rad8 16. Bxe7 Qxe7 17. a3 h6 18. Nce5 Nxe5 19. Nxe5 Qc7 20. Re1 {½-½ (36) Senzacqua,F (1960)-Stepan,J (2027) ICCF email 2020}) 14... Ndb4 {[%emt 0:09:27]} 15. Qd2 {[%emt 0:02:11]} Bf6 {[%emt 0:03:20]} 16. Qxd8 $1 {[%emt 0:11:36]} Raxd8 {[%emt 0:04:06]} 17. Bg5 {[%emt 0:00:29]} Bxa1 {[%emt 0:14:26]} 18. Bxd8 {[%emt 0:00:15]} Bc3 {[%emt 0:05:45]} 19. Bc7 {[%emt 0:01:31][%cal Bd8c7,Bc7d6,Bd6c5,Bc5e3,Be3g5][%mdl 32]} Nd4 {[%emt 0:05:57]} 20. Bd6 {[%emt 0:04:31][%csl LRc5,LRf8]} Rc8 {[%emt 0:01:58]} 21. Ng5 {[%emt 0:04:50]} Nxa2 {[%emt 0:01:27]} 22. Bb7 {[%emt 0:01:07]} Rd8 {[%emt 0:01:32]} 23. Bxc5 {[%emt 0:06:35]} Nxb3 {[%emt 0:01:41]} 24. Nxe6 {[%emt 0:00:24]} fxe6 {[%emt 0:00:06]} 25. Be3 {[%emt 0:04:27] A strong pair of Bishops.} Bd4 {[%emt 0:03:04]} 26. Bg5 {[%emt 0:02:45]} Rb8 {[%emt 0:01:05]} 27. Bf3 {[%emt 0:01:02]} Rb4 {[%emt 0:04:42]} 28. Bg4 {[%emt 0:04:44]} Nc5 {[%emt 0:02:58]} 29. Be7 {[%emt 0:00:21]} Rxc4 {[%emt 0:04:40]} 30. Bxc5 {[%emt 0:00:11][%mdl 64] [#] Remove Defender} Rxc5 {[%emt 0:01:36]} 31. Bxe6+ {[%emt 0:00:06]} Kf8 {[%emt 0:00:02] And now ...Nc3 would win.} 32. Bxa2 $15 {[%emt 0:00:08][%mdl 4096] Endgame KRB-KRB} Rc2 {[%emt 0:00:08]} 33. Bb1 {[%emt 0:00:53] The position is equal.} Rb2 {[%emt 0:01:26]} 34. Bxh7 {[%emt 0:00:40]} a5 {[%emt 0:00:07]} 35. Rc1 {[%emt 0:02:09]} Bxf2+ {[%emt 0:02:59]} 36. Kg2 {[%emt 0:00:48] [#] Strongly threatening Rf1.} Bd4+ {[%emt 0:00:46]} 37. Rc2 {[%emt 0:00:41]} Rxc2+ {[%emt 0:04:14] Weighted Error Value: White=0.05 (flawless) /Black=0.03 (flawless)} 1/2-1/2

[Event "Danish-ch Masters 2022"]
[Site "Svendborg"]
[Date "2022.04.09"]
[Round "1.4"]
[White "Olsen, Filip Boe"]
[Black "Hoi, Carsten"]
[Result "1-0"]
[ECO "A25"]
[WhiteElo "2386"]
[BlackElo "2343"]
[Annotator "TA"]
[PlyCount "103"]
[EventDate "2022.04.10"]
[EventType "tourn"]
[EventCountry "DEN"]
[SourceTitle "playchess.com"]
[Source "ChessBase"]
[SourceQuality "1"]
[TimeControl "40/5400+30:1800+30"]

{[%evp 24,103,16,0,0,-6,0,0,30,14,60,54,61,59,65,25,32,0,0,0,0,-31,-14,-56,-18,-14,0,-74,0,0,75,-27,-21,-113,0,0,0,0,0,-101,-59,-111,-93,-231,-213,-219,-193,-181,-30,-685,-675,-1192,-1094,-1511,-1465,-1694,-1324,-1240,-608,-654,0,-529,-337,-421,-428,-381,-410,-400,-399,-385,-396,-393,0,0,0,0,20,20,359,331,5097,2128]} 1. c4 {[%emt 0:00:10]} e5 {[%emt 0:00:57]} 2. g3 {[%emt 0:00:10]} Nc6 {[%emt 0:01:28]} 3. Bg2 {[%emt 0:01:22]} g6 {[%emt 0:00:56]} 4. Nc3 {[%emt 0:01:00]} Bg7 {[%emt 0:01:01]} 5. e3 {[%emt 0:01:17]} Nge7 {[%emt 0:03:01]} 6. Nge2 {[%emt 0:00:53]} O-O {[%emt 0:01:22]} 7. O-O {[%emt 0:01:06]} d6 {[%emt 0:01:02]} 8. d3 {[%emt 0:02:17]} Be6 {[%emt 0:04:01]} 9. Nd5 {[%emt 0:05:36]} Qd7 {[%emt 0:05:15]} 10. Rb1 {[%emt 0:05:27]} Nd8 {[%emt 0:07:02]} 11. b4 {[%emt 0:05:15]} Nxd5 {[%emt 0:04:55]} 12. cxd5 {[%emt 0:00:09]} Bh3 {[%emt 0:00:12]} 13. b5 {[%emt 0:11:01]} Bxg2 {[%emt 0:08:22] A25: English Opening vs King's Indian with ...Nc6 but without early d3.} 14. Kxg2 {[%emt 0:00:03]} f5 {[%emt 0:04:55]} 15. Qb3 {[%emt 0:08:18]} Nf7 {[%emt 0:06:27] The position is equal.} 16. Bd2 {[%emt 0:06:30] [#]} Kh8 $146 {[%emt 0:04:34]} (16... g5 $11) ({Predecessor:} 16... g5 17. f4 h5 18. Rbc1 h4 19. fxg5 Nxg5 20. gxh4 f4 21. Kh1 Qg4 22. Nxf4 exf4 23. exf4 {0-1 (30) Kejzar,P (2031)-Drljevic,L (2217) Rijeka 2022}) 17. Rbc1 {[%emt 0:01:45]} g5 {[%emt 0:06:55][%cal Of5f4]} 18. f3 {[%emt 0:09:41]} Nh6 {[%emt 0:09:38]} 19. Rc4 {[%emt 0:09:42]} f4 {[%emt 0:03:35]} 20. exf4 {[%emt 0:14:29]} gxf4 {[%emt 0:08:24]} 21. d4 {[%emt 0:08:02]} Nf5 {[%emt 0:03:16]} 22. Rfc1 {[%emt 0:01:07]} Rac8 {[%emt 0:01:14]} 23. a4 {[%emt 0:01:19]} Qf7 {[%emt 0:05:47]} (23... exd4 24. Nxf4 Qf7 25. Qc2 $16) (23... Nxd4 24. Nxd4 exd4 25. Bxf4 $14) 24. dxe5 {[%emt 0:01:15] Hoping for e6.} dxe5 {[%emt 0:00:51]} 25. Re4 {[%emt 0:01:18]} (25. R4c3 $11 {remains equal.}) 25... Nd6 {[%emt 0:02:36]} (25... Rcd8 $17) 26. Rb4 $11 {[%emt 0:00:20][%cal Rg3f4]} Bf6 {[%emt 0:02:19]} (26... fxg3 $11 {keeps the balance.} 27. hxg3 Nf5) 27. Be1 {[%emt 0:00:51]} (27. gxf4 $16 Nf5 28. fxe5 Bxe5 29. Kh1) 27... Rg8 $36 {[%emt 0:00:50][%mdl 2048] Black has the initiative.} 28. Nc3 {[%emt 0:01:34]} (28. Kh1 $11) 28... Rg7 {[%emt 0:01:20]} (28... Nf5 $17 {And now ...Ne3+ would win.} 29. Ne4 Be7) 29. Ne4 {[%emt 0:00:30]} Rcg8 {[%emt 0:00:43]} 30. Bf2 {[%emt 0:02:02]} Bh4 {[%emt 0:01:01] Strongly threatening ...Nxe4.} 31. Rc3 {[%emt 0:00:35] Active counter play!} (31. g4 $1 $11 Bxf2 32. Nxf2) 31... Nf5 {[%emt 0:00:39][%cal Rf4g3,Bd6f5,Bf5d4,Bd4f3][%mdl 32]} 32. g4 {[%emt 0:00:32]} (32. d6 $15 Qxb3 33. Rbxb3 cxd6 34. g4) 32... Bxf2 {[%emt 0:00:45]} 33. Kxf2 {[%emt 0:00:15] [#]} (33. Nxf2 $17 h5 34. Rd3) 33... Qe7 $1 $19 {[%emt 0:01:00]} 34. Ke1 {[%emt 0:00:37]} (34. gxf5 Rg2+ 35. Kf1 Qh4) (34. Kf1 Ne3+) 34... Nd4 {[%emt 0:00:11]} 35. Qb2 {[%emt 0:00:49] [#]} Qd8 $2 {[%emt 0:00:45]} (35... h5 $1 $19 {[%cal Rh5g4]} 36. h3 Qh4+ 37. Qf2 Qxh3) 36. Rc5 $2 {[%emt 0:00:41][%mdl 8192]} (36. Qf2 $11) 36... Nxf3+ {[%emt 0:00:19]} 37. Kd1 {[%emt 0:00:12]} b6 {[%emt 0:00:29]} 38. Rc3 {[%emt 0:00:03]} Qxd5+ {[%emt 0:00:18]} 39. Kc1 {[%emt 0:00:21]} Nd4 {[%emt 0:00:47]} 40. Nf2 {[%emt 0:00:20]} Qg2 {[%emt 0:00:38]} (40... Rxg4 $142 41. Qd2 Rg2 42. Rxd4 exd4) 41. Kb1 {[%emt 0:30:31]} Qd5 $2 {[%emt 0:09:48]} (41... f3 $19 42. Rxd4 exd4) 42. Rbc4 $2 {[%emt 0:00:00][%mdl 8192]} (42. Kc1 $1 $11 {and White stays safe.} Rxg4 43. Qd2) 42... Ne6 {[%emt 0:05:25]} 43. h4 {[%emt 0:00:00]} Rxg4 {[%emt 0:05:32]} 44. Nxg4 {[%emt 0:00:00]} Rxg4 {[%emt 0:00:03]} 45. Rc1 {[%emt 0:00:00]} Nc5 {[%emt 0:05:06]} 46. Qc2 {[%emt 0:00:00]} Qe6 {[%emt 0:03:01] Prevents Qf5.} 47. Re1 {[%emt 0:00:00]} f3 $2 {[%emt 0:04:19]} (47... Kg7 $19 {aiming for ...f3.} 48. a5 Rxh4 49. axb6 axb6 50. Rg1+ Rg4) 48. Rxg4 $11 {[%emt 0:00:00]} Qxg4 {[%emt 0:00:04]} 49. Rxe5 {[%emt 0:00:00]} Qg1+ {[%emt 0:01:07]} (49... Qxa4 50. Qxa4 (50. Re8+ Kg7 $14) 50... Nxa4 51. Kc2 $16 (51. Rf5 Kg7 $14)) 50. Ka2 {[%emt 0:00:00][%mdl 1024] White wants to mate with Qc3. White has compensation.} Qg8+ $2 {[%emt 0:00:30][%mdl 8192] [#]} (50... Qg4 $11 {and Black is okay.}) 51. Ka3 $1 $18 {[%emt 0:00:00] Qc3 is the strong threat.} Qg3 $2 {[%emt 0:00:39]} (51... f2 $2 52. Qc3 (52. Re7 Qg3+ 53. Ka2 Qg8+ 54. Kb2 Qg6 $14) 52... Qb3+ 53. Qxb3) (51... Nd7 52. Rf5 Qg7) 52. Qc3 {[%emt 0:00:00] Weighted Error Value: White=0.90/Black=0.83} ({Weaker is} 52. Re8+ Kg7 53. Qc3+ (53. Re7+ Kf8 $11) 53... Kf7 $18) (52. Rg5 $142 Qxg5 53. hxg5) 1-0